fUSD/lending_fUSD_20240422
["ID","MTS","AMOUNT","RATE_DAILY","PERIOD"]
[323198226,1713801051867,-500.0,0.00013698,2]
[323198227,1713801051876,-500.0,0.00013698,2]
[323198228,1713801051887,-500.0,0.00013698,2]
[323198229,1713801051897,-500.0,0.00013698,2]
[323198230,1713801051906,-940.6,0.00013698,2]
[323198231,1713801051916,-500.0,0.00013698,2]
[323198232,1713801051927,-500.0,0.00013698,2]
[323198233,1713801051937,-500.0,0.00013698,2]
[323198234,1713801051948,-1801.73,0.00013698,2]
[323198235,1713801051958,-1303.77,0.00013698,2]
[323198236,1713801051968,-1593.77,0.00013698,2]
[323198237,1713801051977,-500.0,0.00013698,2]
[323198238,1713801051986,-1191.61,0.00013698,2]
[323198239,1713801051996,-500.0,0.00013698,2]
[323198240,1713801052005,-500.0,0.00013698,2]
[323198241,1713801052015,-287.08177053,0.00013698,2]
[323198242,1713801052024,-632.55,0.00013698,2]
[323198243,1713801052034,-500.0,0.00013698,2]
[323198244,1713801052043,-500.0,0.00013698,2]
[323198245,1713801052053,-500.0,0.00013698,2]
[323198246,1713801052062,-500.0,0.00013698,2]
[323198247,1713801052071,-552.60734409,0.00013698,2]
[323198248,1713801052081,-558.66,0.00013698,2]
[323198249,1713801052092,-500.0,0.00013698,2]
[323198250,1713801052103,-500.0,0.00013698,2]
[323198251,1713801052113,-606.87,0.00013698,2]
[323198252,1713801052122,-719.86,0.00013698,2]
[323198253,1713801052131,-1308.4,0.00013698,2]
[323198254,1713801052140,-500.0,0.00013698,2]
[323198255,1713801052150,-502.64945061,0.00013698,2]
[323198256,1713801052160,-1708.65,0.00013698,2]
[323198257,1713801052170,-519.67,0.00013698,2]
[323198258,1713801052180,-722.8,0.00013698,2]
[323198259,1713801052190,-500.0,0.00013698,2]
[323198260,1713801052199,-1000.0,0.00013698,5]
[323198261,1713801052209,-500.0,0.00013698,2]
[323198262,1713801052219,-519.88,0.00013698,2]
[323198263,1713801052228,-500.0,0.00013698,2]
[323198264,1713801052238,-649.48,0.00013698,2]
[323198265,1713801052249,-500.0,0.00013698,2]
[323198266,1713801052259,-1369.8,0.00013698,2]
[323198267,1713801052268,-500.0,0.00013698,2]
[323198268,1713801052278,-500.0,0.00013698,2]
[323198269,1713801052288,-500.0,0.00013698,2]
[323198270,1713801052298,-500.0,0.00013698,2]
[323198271,1713801052307,-4558.1,0.00013698,2]
[323198272,1713801052317,-744.04,0.00013698,2]
[323198273,1713801052326,-1996.57,0.00013698,2]
[323198274,1713801052336,-1416.5,0.00013698,2]
[323198275,1713801052345,-500.0,0.00013698,2]
[323198276,1713801052355,-500.0,0.00013698,2]
[323198277,1713801052365,-500.0,0.00013698,2]
[323198278,1713801052374,-861.93,0.00013698,2]
[323198279,1713801052384,-585.49,0.00013698,2]
[323198280,1713801052394,-564.4,0.00013698,2]
[323198281,1713801052404,-943.79,0.00013698,2]
[323198282,1713801052413,-500.0,0.00013698,2]
[323198283,1713801052424,-500.0,0.00013698,2]
[323198284,1713801052433,-501.76,0.00013698,2]
[323198285,1713801052445,-500.0,0.00013698,2]
[323198286,1713801052454,-500.0,0.00013698,2]
[323198287,1713801052463,-500.0,0.00013698,2]
[323198288,1713801052473,-500.0,0.00013698,2]
[323198289,1713801052482,-500.0,0.00013698,2]
[323198290,1713801052492,-703.83,0.00013698,2]
[323198291,1713801052501,-500.0,0.00013698,2]
[323198292,1713801052511,-758.25,0.00013698,2]
[323198293,1713801052520,-753.38,0.00013698,2]
[323198294,1713801052529,-500.0,0.00013698,2]
[323198295,1713801052539,-530.95838591,0.00013698,2]
[323198296,1713801052549,-632.40466127,0.00013698,2]
[323198297,1713801052558,-500.0,0.00013698,2]
[323198298,1713801052567,-500.0,0.00013698,2]
[323198299,1713801052577,-500.0,0.00013698,2]
[323198300,1713801052587,-1496.88,0.00013698,2]
[323198301,1713801052596,-1437.78,0.00013698,2]
[323198302,1713801052605,-579.43,0.00013698,2]
[323198303,1713801052615,-2459.58,0.00013698,2]
[323198304,1713801052624,-500.0,0.00013698,2]
[323198305,1713801052633,-500.0,0.00013698,2]
[323198306,1713801052643,-500.0,0.00013698,2]
[323198307,1713801052653,-886.1,0.00013698,2]
[323198308,1713801052662,-500.0,0.00013698,2]
[323198309,1713801052672,-680.29,0.00013698,2]
[323198310,1713801052682,-1710.24,0.00013698,2]
[323198311,1713801052691,-1365.54,0.00013698,2]
[323198312,1713801052700,-500.0,0.00013698,2]
[323198313,1713801052711,-500.0,0.00013698,2]
[323198314,1713801052722,-500.0,0.00013698,2]
[323198315,1713801052731,-500.0,0.00013698,2]
[323198316,1713801052740,-500.0,0.00013698,2]
[323198317,1713801052751,-500.0,0.00013698,2]
[323198318,1713801052760,-500.0,0.00013698,2]
[323198319,1713801052769,-500.0,0.00013698,2]
[323198320,1713801052779,-500.0,0.00013698,2]
[323198321,1713801052789,-500.0,0.00013698,2]
[323198322,1713801052798,-1622.69,0.00013698,2]
[323198323,1713801052808,-2147.14,0.00013698,2]
[323198324,1713801052819,-500.0,0.00013698,2]
[323198325,1713801052828,-500.0,0.00013698,2]
[323198326,1713801052838,-523.51106533,0.00013698,2]
[323198327,1713801052848,-500.0,0.00013698,2]
[323198328,1713801052857,-1118.39,0.00013698,2]
[323198329,1713801052867,-1200.12,0.00013698,2]
[323198330,1713801052876,-500.0,0.00013698,2]
[323198331,1713801052885,-500.0,0.00013698,2]
[323198332,1713801052894,-500.0,0.00013698,2]
[323198333,1713801052905,-500.0,0.00013698,2]
[323198334,1713801052915,-500.0,0.00013698,2]
[323198335,1713801052925,-500.0,0.00013698,2]
[323198336,1713801052934,-1040.24,0.00013698,2]
[323198337,1713801052944,-500.0,0.00013698,2]
[323198338,1713801052954,-500.0,0.00013698,2]
[323198339,1713801052964,-500.0,0.00013698,2]
[323198340,1713801052974,-860.28,0.00013698,2]
[323198341,1713801052983,-500.0,0.00013698,2]
[323198342,1713801052993,-614.46,0.00013698,2]
[323198343,1713801053002,-500.0,0.00013698,2]
[323198344,1713801053012,-1595.49,0.00013698,2]
[323198345,1713801053022,-792.08,0.00013698,2]
[323198346,1713801053031,-500.0,0.00013698,2]
[323198347,1713801053041,-500.0,0.00013698,2]
[323198348,1713801053050,-500.0,0.00013698,2]
[323198349,1713801053060,-500.0,0.00013698,2]
[323198350,1713801053070,-500.0,0.00013698,2]
[323198351,1713801053079,-518.82,0.00013698,2]
[323198352,1713801053089,-563.08,0.00013698,2]
[323198353,1713801053099,-559.69,0.00013698,2]
[323198354,1713801053108,-3440.9,0.00013698,2]
[323198355,1713801053118,-500.0,0.00013698,2]
[323198356,1713801053129,-500.0,0.00013698,2]
[323198357,1713801053139,-3067.63,0.00013698,2]
[323198358,1713801053149,-500.0,0.00013698,2]
[323198359,1713801053159,-500.0,0.00013698,2]
[323198360,1713801053169,-500.0,0.00013698,2]
[323198361,1713801053179,-500.0,0.00013698,2]
[323198362,1713801053189,-1998.28,0.00013698,2]
[323198363,1713801053199,-500.0,0.00013698,2]
[323198364,1713801053209,-500.0,0.00013698,2]
[323198365,1713801053218,-500.0,0.00013698,2]
[323198366,1713801053228,-500.0,0.00013698,2]
[323198367,1713801053238,-500.0,0.00013698,2]
[323198368,1713801053247,-688.15,0.00013698,2]
[323198369,1713801053258,-500.0,0.00013698,2]
[323198370,1713801053268,-1855.2,0.00013698,2]
[323198371,1713801053278,-846.63,0.00013698,2]
[323198372,1713801053288,-500.0,0.00013698,2]
[323198373,1713801053298,-500.0,0.00013698,2]
[323198374,1713801053308,-558.15,0.00013698,2]
[323198375,1713801053318,-500.0,0.00013698,2]
[323198376,1713801053328,-817.01,0.00013698,2]
[323198377,1713801053338,-500.0,0.00013698,2]
[323198378,1713801053349,-1936.29,0.00013698,2]
[323198379,1713801053358,-1278.63,0.00013698,2]
[323198380,1713801053370,-500.0,0.00013698,2]
[323198381,1713801053380,-500.0,0.00013698,2]
[323198382,1713801053389,-500.0,0.00013698,2]
[323198383,1713801053399,-500.0,0.00013698,2]
[323198384,1713801053409,-2335.77,0.00013698,2]
[323198385,1713801053418,-500.0,0.00013698,2]
[323198386,1713801053429,-500.0,0.00013698,2]
[323198387,1713801053439,-1452.71,0.00013698,2]
[323198388,1713801053448,-500.0,0.00013698,2]
[323198389,1713801053458,-744.44,0.00013698,2]
[323198390,1713801053467,-500.0,0.00013698,2]
[323198391,1713801053477,-665.87,0.00013698,2]
[323198392,1713801053486,-1168.69,0.00013698,2]
[323198393,1713801053495,-606.72,0.00013698,2]
[323198394,1713801053505,-500.0,0.00013698,2]
[323198395,1713801053514,-543.47,0.00013698,2]
[323198396,1713801053523,-502.27,0.00013698,2]
[323198397,1713801053533,-500.0,0.00013698,2]
[323198398,1713801053542,-500.0,0.00013698,2]
[323198399,1713801053551,-500.0,0.00013698,2]
[323198400,1713801053560,-1468.13,0.00013698,2]
[323198401,1713801053569,-500.0,0.00013698,2]
[323198402,1713801053579,-563.3818538,0.00013698,2]
[323198403,1713801053588,-2193.73,0.00013698,2]
[323198404,1713801053598,-645.95,0.00013698,2]
[323198405,1713801053607,-500.0,0.00013698,2]
[323198406,1713801053617,-500.0,0.00013698,2]
[323198407,1713801053626,-500.0,0.00013698,2]
[323198408,1713801053636,-798.16,0.00013698,2]
[323198409,1713801053644,-500.0,0.00013698,2]
[323198410,1713801053654,-267.29024942,0.00013698,2]
[323198411,1713801053663,-500.0,0.00013698,2]
[323198412,1713801053673,-3474.29,0.00013698,2]
[323198413,1713801053683,-531.68,0.00013698,2]
[323198414,1713801053692,-1389.53,0.00013698,2]
[323198415,1713801053701,-500.0,0.00013698,2]
[323198416,1713801053713,-500.0,0.00013698,2]
[323198417,1713801053724,-500.0,0.00013698,2]
[323198418,1713801053734,-500.0,0.00013698,2]
[323198419,1713801053744,-500.0,0.00013698,2]
[323198420,1713801053753,-2591.29,0.00013698,2]
[323198421,1713801053763,-651.69,0.00013698,2]
[323198422,1713801053773,-500.0,0.00013698,2]
[323198423,1713801053782,-610.07,0.00013698,2]
[323198424,1713801053792,-631.08062721,0.00013698,2]
[323198425,1713801053802,-640.4,0.00013698,2]
[323198426,1713801053811,-500.0,0.00013698,2]
[323198427,1713801053820,-1029.74,0.00013698,2]
[323198428,1713801053830,-728.05,0.00013698,2]
[323198429,1713801053839,-500.0,0.00013698,2]
[323198430,1713801053849,-500.0,0.00013698,2]
[323198431,1713801053859,-500.0,0.00013698,2]
[323198432,1713801053868,-500.0,0.00013698,2]
[323198433,1713801053879,-500.0,0.00013698,2]
[323198434,1713801053888,-883.68,0.00013698,2]
[323198435,1713801053897,-500.0,0.00013698,2]
[323198436,1713801053907,-500.0,0.00013698,2]
[323198437,1713801053917,-501.09923894,0.00013698,2]
[323198438,1713801053926,-500.0,0.00013698,2]
[323198439,1713801053936,-500.0,0.00013698,2]
[323198440,1713801053944,-1086.54,0.00013698,2]
[323198441,1713801053953,-863.3,0.00013698,2]
[323198442,1713801053963,-1463.48,0.00013698,2]
[323198443,1713801053973,-500.0,0.00013698,2]
[323198444,1713801053982,-1985.33,0.00013698,2]
[323198445,1713801053992,-578.55,0.00013698,2]
[323198446,1713801054001,-545.16,0.00013698,2]
[323198447,1713801054011,-715.07,0.00013698,2]
[323198448,1713801054020,-500.0,0.00013698,2]
[323198449,1713801054030,-1172.3,0.00013698,2]
[323198450,1713801054039,-500.0,0.00013698,2]
[323198451,1713801054049,-638.49,0.00013698,2]
[323198452,1713801054059,-527.77,0.00013698,2]
[323198453,1713801054068,-500.0,0.00013698,2]
[323198454,1713801054078,-804.58,0.00013698,2]
[323198455,1713801054087,-500.0,0.00013698,2]
[323198456,1713801054097,-500.0,0.00013698,2]
[323198457,1713801054106,-500.0,0.00013698,2]
[323198458,1713801054115,-892.66,0.00013698,2]
[323198459,1713801054124,-500.0,0.00013698,2]
[323198460,1713801054134,-500.0,0.00013698,2]
[323198461,1713801054143,-500.0,0.00013698,2]
[323198462,1713801054154,-2331.77,0.00013698,2]
[323198463,1713801054164,-500.0,0.00013698,2]
[323198464,1713801054175,-1884.76,0.00013698,2]
[323198465,1713801054185,-500.0,0.00013698,2]
[323198466,1713801054194,-500.0,0.00013698,2]
[323198467,1713801054204,-500.0,0.00013698,2]
[323198468,1713801054214,-500.0,0.00013698,2]
[323198469,1713801054223,-78.48408017,0.00013698,2]
[323198470,1713801055077,-262.07060898,0.00013698,2]
[323198471,1713801056511,-1600.8809706,0.00013591,2]
[323198472,1713801057376,-749.29993658,0.00012999,2]
[323198473,1713801057386,-1844.85463888,0.00013591,2]
[323198474,1713801057396,-159.44531085,0.00013698,2]
[323198475,1713801057405,-500.0,0.00013698,2]
[323198476,1713801057414,-610.38,0.00013698,2]
[323198477,1713801057423,-500.0,0.00013698,2]
[323198478,1713801057434,-500.0,0.00013698,2]
[323198479,1713801057444,-427.78011369,0.00013698,2]
[323198480,1713801057456,-72.21988631,0.00013698,2]
[323198481,1713801057466,-500.0,0.00013698,2]
[323198482,1713801057475,-257.74,0.00013698,2]
[323198483,1713801057484,-541.60075341,0.00013698,2]
[323198491,1713801445239,443.71,0.0001077,2]
[323198495,1713801733077,23900.0,0.00011115,2]
[323198497,1713801820364,155.0,0.000112,2]
[323198498,1713801828231,408.40214741,0.000112,2]
[323198499,1713801836490,155.0,0.000112,2]
[323198500,1713801849072,1994.63391406,0.000112,2]
[323198501,1713801859082,1351.45342977,0.000112,2]
[323198502,1713801867272,600.0,0.00011164,2]
[323198504,1713801926733,421.52,9.245e-05,2]
[323198505,1713801932429,444.46701666,0.000112,2]
[323198506,1713802005604,15655.30458889,0.000112,2]
[323198507,1713802104979,250.0,0.00011107,2]
[323198508,1713802146583,425.36,0.00011185,2]
[323198509,1713802209303,23900.0,0.00011121,2]
[323198511,1713802220730,176.43,0.00011176,2]
[323198526,1713802232108,-317.11477843,0.00011215,2]
[323198527,1713802232118,-226.16,0.00011216,2]
[323198528,1713802232128,-160.72349285,0.00011279,2]
[323198529,1713802232139,-1880.86,0.00011379,2]
[323198530,1713802232148,-150.3,0.00011465,2]
[323198531,1713802232158,-421.52,0.00011509,2]
[323198532,1713802232167,-150.3,0.00011614,2]
[323198533,1713802232179,-1414.79,0.00011708,2]
[323198534,1713802232188,-1414.79,0.00011711,2]
[323198535,1713802232198,-150.99,0.00011711,2]
[323198536,1713802232207,-150.0,0.00011713,2]
[323198537,1713802232216,-240.55,0.00011713,2]
[323198538,1713802232225,-1414.79,0.00011714,2]
[323198539,1713802232234,-1430.66,0.00011714,2]
[323198540,1713802232244,-1414.79,0.00011717,2]
[323198541,1713802232253,-1414.79,0.0001172,2]
[323198542,1713802232262,-1414.79,0.00011723,2]
[323198543,1713802232271,-1414.79,0.00011726,2]
[323198544,1713802232280,-1414.79,0.00011729,2]
[323198545,1713802232289,-1414.79,0.00011732,2]
[323198546,1713802232298,-1414.79,0.00011735,2]
[323198547,1713802232308,-1414.79,0.00011738,2]
[323198548,1713802232318,-1414.79,0.00011741,2]
[323198549,1713802232327,-1414.79,0.00011744,2]
[323198550,1713802232337,-1414.79,0.00011747,2]
[323198551,1713802232345,-1414.79,0.0001175,2]
[323198552,1713802232355,-1414.79,0.00011754,2]
[323198553,1713802232365,-1414.79,0.00011757,2]
[323198554,1713802232374,-1414.79,0.0001176,2]
[323198556,1713802232383,-1414.79,0.00011763,2]
[323198557,1713802232393,-150.3,0.00011763,2]
[323198559,1713802232402,-1414.79,0.00011766,2]
[323198561,1713802232411,-150.3,0.00011913,2]
[323198563,1713802232420,-400.0,0.00011943,2]
[323198565,1713802232430,-1750.0,0.00012,2]
[323198568,1713802232440,-150.3,0.00012062,2]
[323198569,1713802232450,-2862.4786,0.00012199,2]
[323198571,1713802232459,-3200.0,0.000123,4]
[323198573,1713802232469,-4729.34546324,0.00012348,7]
[323198575,1713802232479,-6400.0,0.000124,4]
[323198577,1713802232490,-9600.0,0.000125,4]
[323198578,1713802232500,-600.0,0.0001256,2]
[323198579,1713802232511,-12900.0,0.000126,4]
[323198580,1713802232522,-226.16,0.00012618,2]
[323198581,1713802232532,-9521.505,0.00012678,2]
[323198582,1713802232543,-2803.8621,0.00012678,2]
[323198583,1713802232553,-182.71,0.00012688,2]
[323198584,1713802232563,-16100.0,0.000127,4]
[323198585,1713802232573,-157.23443646,0.00012775,2]
[323198586,1713802232584,-18499.879434,0.00012776,2]
[323198587,1713802232595,-6783.3565408,0.00012778,2]
[323198588,1713802232608,-10076.94638976,0.00012778,2]
[323198589,1713802232624,-5699.47156421,0.00012778,2]
[323198590,1713802232637,-1000.0,0.00012778,2]
[323198591,1713802232721,-425.24221204,0.00012778,2]
[323198592,1713802232733,-1707.40804999,0.00012778,2]
[323198593,1713802232745,-2888.53944366,0.00012778,2]
[323198641,1713802238090,-509.16789362,0.00012778,2]
[323198643,1713802238102,-436.63471156,0.00012778,2]
[323198647,1713802238128,-3055.35126391,0.00012778,2]
[323198649,1713802238140,-1940.94509564,0.00012778,2]
[323198650,1713802238151,-7969.17193469,0.00012778,2]
[323198651,1713802238163,-3131.87472,0.00012778,2]
[323198653,1713802238186,-2802.58003794,0.00012778,2]
[323198660,1713802238245,-386.19524274,0.00012778,2]
[323198673,1713802238357,-901.19631038,0.00012778,2]
[323198675,1713802238369,-618.67750001,0.00012778,2]
[323198677,1713802238381,-684.24190057,0.00012778,2]
[323198680,1713802238394,-1074.62080741,0.00012778,2]
[323198682,1713802238403,-8082.05741626,0.00012779,2]
[323198684,1713802238413,-14267.1238,0.000128,2]
[323198686,1713802238423,-3200.0,0.000128,4]
[323198687,1713802238432,-2500.0,0.000128,2]
[323198689,1713802238441,-1000.0,0.000129,2]
[323198690,1713802238451,-10000.0,0.000129,2]
[323198691,1713802238460,-4793.3633,0.000129,2]
[323198692,1713802238469,-64984.1645,0.000129,2]
[323198694,1713802238478,-5302.0777,0.000129,2]
[323198695,1713802238487,-349.2034686,0.000129,2]
[323198696,1713802238497,-3200.0,0.000129,4]
[323198697,1713802238506,-13576.61853071,0.000129,2]
[323198698,1713802238515,-10000.0,0.00012915,2]
[323198699,1713802238524,-184.38233433,0.00012934,2]
[323198700,1713802238534,-13069.82393651,0.00012985,2]
[323198701,1713802238544,-4575.75270794,0.00012986,2]
[323198702,1713802238553,-349.20346859,0.00012988,2]
[323198703,1713802238562,-169.11011791,0.00012989,2]
[323198704,1713802238572,-195.706206,0.00012989,2]
[323198706,1713802238584,-5215.51625621,0.00012989,2]
[323198708,1713802238594,-1607.23139606,0.00012989,2]
[323198710,1713802238603,-193.07855599,0.0001299,2]
[323198712,1713802238613,-193.07855599,0.0001299,2]
[323198714,1713802238622,-193.07855599,0.0001299,2]
[323198716,1713802238632,-3703.11529181,0.00012996,2]
[323198718,1713802238642,-1136.31586257,0.00012998,2]
[323198720,1713802238654,-192.39388199,0.00012998,2]
[323198722,1713802238664,-155.3047756,0.00012998,2]
[323198724,1713802238674,-155.26212772,0.00012998,2]
[323198726,1713802238683,-663.73364054,0.00012998,2]
[323198728,1713802238692,-784.50611485,0.00012998,2]
[323198730,1713802238701,-216.5360115,0.00012998,2]
[323198732,1713802238711,-264.01498696,0.00012998,2]
[323198734,1713802238721,-1806.20222963,0.00012998,2]
[323198736,1713802238730,-687.10463362,0.00012998,2]
[323198738,1713802238740,-161.04038228,0.00012998,2]
[323198740,1713802238749,-174.12211115,0.00012998,2]
[323198742,1713802238758,-1072.90099025,0.00012998,2]
[323198744,1713802238768,-990.62994113,0.00012998,2]
[323198745,1713802238777,-219.73582537,0.00012998,2]
[323198747,1713802238787,-2211.94130741,0.00012998,2]
[323198748,1713802238797,-305.63695622,0.00012998,2]
[323198749,1713802238806,-489.26159003,0.00012998,2]
[323198750,1713802238816,-245.12088853,0.00012998,2]
[323198751,1713802238825,-263.79418499,0.00012998,2]
[323198752,1713802238835,-19499.51467127,0.00012998,2]
[323198753,1713802238845,-309.29582041,0.00012998,2]
[323198754,1713802238855,-308.24550797,0.00012998,2]
[323198755,1713802238865,-199.43195589,0.00012998,2]
[323198756,1713802238875,-683.77972467,0.00012998,2]
[323198757,1713802238885,-376.48214074,0.00012998,2]
[323198758,1713802238895,-250.20236261,0.00012998,2]
[323198759,1713802238904,-352.14719019,0.00012998,7]
[323198760,1713802238913,-191.50130884,0.00012998,2]
[323198761,1713802238923,-167.20253002,0.00012998,2]
[323198762,1713802238932,-194.68759006,0.00012998,2]
[323198763,1713802238941,-155.0,0.00012998,2]
[323198764,1713802238951,-410.54897981,0.00012998,2]
[323198765,1713802238960,-189.71207442,0.00012998,2]
[323198766,1713802238970,-1993.20295054,0.00012998,2]
[323198767,1713802238979,-363.53802358,0.00012998,2]
[323198768,1713802238988,-306.43576063,0.00012998,2]
[323198769,1713802238997,-2069.52917903,0.00012998,2]
[323198770,1713802239007,-442.75196345,0.00012998,2]
[323198771,1713802239017,-1748.97623811,0.00012999,2]
[323198772,1713802239026,-2400.35220125,0.00012999,2]
[323198773,1713802239036,-158.3969132,0.00012999,2]
[323198774,1713802239045,-2999.50193074,0.00012999,2]
[323198775,1713802239054,-1708.8878172,0.00012999,3]
[323198776,1713802239063,-506649.18502638,0.00013,2]
[323198777,1713802239075,-1099338.45223863,0.00013,2]
[323198778,1713802239090,-3232.59791078,0.00013,2]
[323198779,1713802239103,-490.73969016,0.00013,2]
[323198785,1713802240201,-5270.76071364,0.00012915,2]
[323198786,1713802240212,-394.59679659,0.00012915,2]
[323198787,1713802240223,-350.70589013,0.00012915,2]
[323198788,1713802240233,-116.60400388,0.00013,2]
[323198789,1713802240245,-480.42,0.00013,2]
[323198790,1713802240259,-644.31697829,0.00013,2]
[323198791,1713802240271,-1028.98584282,0.00013,2]
[323198792,1713802240283,-623.97252,0.00013,2]
[323198793,1713802240315,-4985.45897995,0.00013,2]
[323198794,1713802240326,-2083.64432247,0.00013,2]
[323198795,1713802240340,-318.2530643,0.00013,2]
[323198796,1713802240385,-1145.8248778,0.00013,2]
[323198797,1713802240429,-455.55999999,0.00013,2]
[323198798,1713802240442,-357.99,0.00013,2]
[323198799,1713802240456,-814394.99677541,0.00013,2]
[323198841,1713802243172,-2956.49982506,0.00013,2]
[323198842,1713802243184,-8177.89451298,0.00013,2]
[323198843,1713802243307,-870.000002,0.00013,2]
[323198844,1713802243319,-6267.66595753,0.00013,2]
[323198845,1713802243332,-188358.7849286,0.00013,2]
[323198846,1713802243362,-390.5365025,0.00013,2]
[323198847,1713802243373,-728.65757554,0.00013,2]
[323198848,1713802243387,-16650.3467,0.00013,2]
[323198849,1713802243405,-2062.48042031,0.00013,2]
[323198850,1713802243416,-286.52754797,0.00013,2]
[323198851,1713802243521,-57917.72006723,0.00013,2]
[323198853,1713802243607,-411735.43160045,0.00013,2]
[323198873,1713802246526,-158.9,0.0001237,2]
[323198876,1713802246536,-50120.84546738,0.00013,2]
[323198878,1713802246548,-515.48661682,0.00013,2]
[323198880,1713802246559,-1279.96,0.00013,2]
[323198881,1713802246571,-3545.88638143,0.00013,2]
[323198882,1713802246582,-1922.04053828,0.00013,2]
[323198883,1713802246601,-11372.55479638,0.00013,2]
[323198884,1713802246612,-1018.3,0.00013,2]
[323198885,1713802246623,-7354.2198864,0.00013,2]
[323198886,1713802246693,-7496.55257059,0.00013,2]
[323198887,1713802246706,-16869.73934652,0.00013,2]
[323198888,1713802246717,-1227.69,0.00013,2]
[323198889,1713802246757,-265.15710906,0.00013,2]
[323198890,1713802246769,-945.51932382,0.00013,2]
[323198891,1713802246781,-638.0945318,0.00013,2]
[323198892,1713802246826,-495.411,0.00013,2]
[323198893,1713802246837,-387.53754655,0.00013,2]
[323198894,1713802246851,-794.89183922,0.00013,2]
[323198895,1713802246862,-571.50448681,0.00013,2]
[323198896,1713802246874,-669.896727,0.00013,2]
[323198901,1713802468607,396.73,0.00010078,2]
[323198905,1713802974914,376.89,9.415e-05,2]
[323198906,1713803150434,-11005.72463717,0.00011318,2]
[323198907,1713803151151,-11005.72463717,0.00011318,2]
[323198908,1713803157776,-1005.72463717,0.00011318,2]
[323198909,1713803161554,-332.90500809,0.00011318,2]
[323198910,1713803161577,-672.81962908,0.00011319,2]
[323198913,1713803187503,-161.49803489,0.00011317,2]
[323198914,1713803187868,-38.22660228,0.00011318,2]
[323198915,1713803188399,-199.72463717,0.00011318,2]
[323198916,1713803189350,-199.72463717,0.00011318,2]
[323198917,1713803190962,-15.32412338,0.00011318,2]
[323198918,1713803190987,-184.40051379,0.00011319,2]
[323198919,1713803203752,-150.72463717,0.00011319,2]
[323198942,1713803432380,-150.0,0.00011318,2]
[323198943,1713803432390,-251.74619222,0.00011318,2]
[323198944,1713803432401,-272.1859832,0.00011318,2]
[323198945,1713803432410,-3759.13519931,0.00011318,2]
[323198946,1713803432420,-2999.88375729,0.00011319,2]
[323198947,1713803432430,-155.0,0.00011319,2]
[323198948,1713803432439,-487.2863411,0.00011319,2]
[323198949,1713803432448,-3080.48716405,0.00011325,2]
[323198950,1713803432457,-360.0,0.00011328,2]
[323198951,1713803432467,-169.62,0.00011355,2]
[323198952,1713803432478,-157.22,0.00011437,2]
[323198953,1713803432488,-199.34,0.00011439,2]
[323198954,1713803432504,-5015.50267374,0.000115,2]
[323198955,1713803432517,-1109.7,0.00011513,4]
[323198956,1713803432527,-157.22,0.00011556,2]
[323198957,1713803432537,-565.74,0.00011632,2]
[323198958,1713803432548,-157.22,0.00011675,2]
[323198959,1713803432557,-376.89,0.00011679,2]
[323198960,1713803432566,-499.99,0.00011752,2]
[323198961,1713803432575,-157.22,0.00011795,2]
[323198962,1713803432584,-157.22,0.00011914,2]
[323198963,1713803432594,-184.34,0.00011995,2]
[323198965,1713803432603,-1253.23,0.00011995,2]
[323198967,1713803432611,-19416.87,0.00011995,2]